fUSD/lending_fUSD_20250630
["ID","MTS","AMOUNT","RATE_DAILY","PERIOD"]
[368691278,1751301023466,440.26551,0.00018001,29]
[368691279,1751301023562,440.26551,0.00018001,29]
[368691280,1751301023726,440.26551,0.00018001,29]
[368691281,1751301023918,440.26552,0.00018001,29]
[368691299,1751301031815,-154.984296,0.00013793,2]
[368691300,1751301031825,-597.06067931,0.00013794,2]
[368691302,1751301031835,-425.84144703,0.00013795,2]
[368691304,1751301031844,-158.23393763,0.00013795,2]
[368691306,1751301031854,-160.52336174,0.00013795,2]
[368691308,1751301031863,-5000.0,0.00013796,2]
[368691310,1751301031872,-1200.0,0.00013806,2]
[368691312,1751301031882,-425.84144694,0.00013807,2]
[368691313,1751301031891,-158.23393763,0.00013816,2]
[368691314,1751301031900,-425.84144694,0.00013818,2]
[368691315,1751301031910,-425.84144694,0.0001383,2]
[368691316,1751301031920,-158.23393763,0.00013837,2]
[368691317,1751301031929,-300.0,0.00013841,2]
[368691318,1751301031938,-425.84144694,0.00013842,2]
[368691319,1751301031948,-425.84144694,0.00013853,2]
[368691320,1751301031958,-158.23393763,0.00013858,2]
[368691321,1751301031968,-732.70206,0.0001386,2]
[368691322,1751301031979,-425.84144694,0.00013865,2]
[368691323,1751301031990,-500.0,0.00013866,2]
[368691324,1751301032000,-425.84144694,0.00013877,2]
[368691325,1751301032012,-158.23393763,0.00013879,2]
[368691326,1751301032022,-207.4,0.00013887,2]
[368691327,1751301032032,-206.33422799,0.00013888,2]
[368691328,1751301032042,-151.0,0.00013888,2]
[368691329,1751301032051,-425.84144694,0.00013888,2]
[368691330,1751301032061,-490.0,0.00013894,2]
[368691331,1751301032070,-490.0,0.00013894,2]
[368691332,1751301032080,-490.0,0.00013894,2]
[368691333,1751301032089,-490.0,0.00013894,2]
[368691334,1751301032099,-490.0,0.00013894,2]
[368691335,1751301032108,-490.0,0.00013894,2]
[368691336,1751301032118,-216.94265486,0.00013894,2]
[368691337,1751301032127,-1051.6,0.00013894,2]
[368691338,1751301032138,-502.92973013,0.00013894,2]
[368691339,1751301032147,-490.0,0.00013894,2]
[368691340,1751301032157,-490.0,0.00013894,2]
[368691341,1751301032166,-490.0,0.00013894,2]
[368691342,1751301032176,-490.0,0.00013894,2]
[368691343,1751301032186,-842.47,0.00013894,2]
[368691344,1751301032196,-490.0,0.00013894,2]
[368691345,1751301032206,-490.0,0.00013894,2]
[368691346,1751301032215,-527.79,0.00013894,2]
[368691347,1751301032225,-1139.55,0.00013894,2]
[368691348,1751301032235,-425.62052598,0.00013894,2]
[368691350,1751301032245,-490.0,0.00013894,2]
[368691352,1751301032256,-490.0,0.00013894,2]
[368691354,1751301032266,-738.95,0.00013894,2]
[368691355,1751301032276,-1516.54,0.00013894,2]
[368691356,1751301032285,-490.0,0.00013894,2]
[368691357,1751301032295,-1785.66,0.00013894,2]
[368691358,1751301032305,-714.82,0.00013894,2]
[368691361,1751301032314,-490.0,0.00013894,2]
[368691363,1751301032324,-490.0,0.00013894,2]
[368691365,1751301032335,-179.96792415,0.00013894,2]
[368691367,1751301032345,-490.0,0.00013894,2]
[368691369,1751301032354,-500.0,0.00013894,2]
[368691371,1751301032364,-490.0,0.00013894,2]
[368691373,1751301032373,-1328.72,0.00013894,2]
[368691374,1751301032383,-1123.78,0.00013894,2]
[368691376,1751301032392,-564.42,0.00013894,2]
[368691378,1751301032401,-490.0,0.00013894,2]
[368691381,1751301032410,-245.24779549,0.00013894,2]
[368691384,1751301032421,-490.0,0.00013894,2]
[368691387,1751301032431,-858.98,0.00013894,2]
[368691390,1751301032440,-677.08,0.00013894,2]
[368691393,1751301032450,-435.6887779,0.00013894,2]
[368691396,1751301032459,-1107.80209455,0.00013894,2]
[368691402,1751301032504,-769.03521445,0.00013894,2]
[368691404,1751301032514,-1053.9,0.00013894,2]
[368691406,1751301032523,-490.0,0.00013894,2]
[368691409,1751301032533,-490.0,0.00013894,2]
[368691411,1751301032542,-1710.301159,0.00013894,2]
[368691414,1751301032551,-575.15,0.00013894,2]
[368691416,1751301032562,-1974.029863,0.00013894,2]
[368691418,1751301032571,-490.0,0.00013894,2]
[368691420,1751301032581,-490.0,0.00013894,2]
[368691422,1751301032590,-154.789388,0.00013894,2]
[368691424,1751301032600,-490.0,0.00013894,2]
[368691426,1751301032609,-490.0,0.00013894,2]
[368691427,1751301032619,-837.0,0.00013894,2]
[368691429,1751301032629,-490.0,0.00013894,2]
[368691430,1751301032639,-157.485263,0.00013894,2]
[368691431,1751301032650,-385.570948,0.00013894,2]
[368691432,1751301032659,-490.0,0.00013894,2]
[368691433,1751301032669,-712.89,0.00013894,2]
[368691434,1751301032678,-726.01,0.00013894,2]
[368691435,1751301032688,-490.0,0.00013894,2]
[368691436,1751301032699,-490.0,0.00013894,2]
[368691437,1751301032709,-517.36,0.00013894,2]
[368691438,1751301032718,-490.0,0.00013894,2]
[368691439,1751301032728,-484.56203132,0.00013894,2]
[368691440,1751301032738,-490.0,0.00013894,2]
[368691441,1751301032747,-1394.01,0.00013894,2]
[368691442,1751301032757,-490.0,0.00013894,2]
[368691443,1751301032767,-567.5,0.00013894,2]
[368691444,1751301032776,-490.0,0.00013894,2]
[368691445,1751301032786,-490.0,0.00013894,2]
[368691446,1751301032795,-490.0,0.00013894,2]
[368691447,1751301032805,-490.0,0.00013894,2]
[368691448,1751301032815,-490.0,0.00013894,2]
[368691449,1751301032825,-58.11198798,0.00013894,2]
[368691450,1751301032838,-431.88801202,0.00013894,2]
[368691451,1751301032847,-34.91783509,0.00013894,2]
[368691452,1751301032890,-1464.56216491,0.00013894,2]
[368691453,1751301032899,-490.0,0.00013894,2]
[368691454,1751301032909,-490.0,0.00013894,2]
[368691455,1751301032918,-747.18,0.00013894,2]
[368691456,1751301032927,-410.39951486,0.00013894,2]
[368691457,1751301032937,-490.0,0.00013894,2]
[368691458,1751301032948,-490.0,0.00013894,2]
[368691459,1751301032958,-1057.3,0.00013894,2]
[368691460,1751301032967,-362.66027848,0.00013894,2]
[368691461,1751301032977,-490.0,0.00013894,2]
[368691462,1751301032987,-537.55,0.00013894,2]
[368691463,1751301032998,-784.27,0.00013894,2]
[368691464,1751301033007,-490.0,0.00013894,2]
[368691465,1751301033017,-490.0,0.00013894,2]
[368691466,1751301033027,-490.0,0.00013894,2]
[368691467,1751301033036,-490.0,0.00013894,2]
[368691468,1751301033047,-490.0,0.00013894,2]
[368691469,1751301033057,-578.54660694,0.00013894,2]
[368691470,1751301033070,-732.61,0.00013894,2]
[368691471,1751301033080,-490.0,0.00013894,2]
[368691472,1751301033092,-490.0,0.00013894,2]
[368691473,1751301033102,-1003.26,0.00013894,2]
[368691474,1751301033113,-490.0,0.00013894,2]
[368691475,1751301033123,-490.0,0.00013894,2]
[368691476,1751301033133,-490.0,0.00013894,2]
[368691477,1751301033143,-490.0,0.00013894,2]
[368691478,1751301033153,-562.03,0.00013894,2]
[368691479,1751301033163,-490.0,0.00013894,2]
[368691480,1751301033173,-505.51571617,0.00013894,2]
[368691481,1751301033183,-549.83,0.00013894,2]
[368691482,1751301033193,-490.0,0.00013894,2]
[368691483,1751301033203,-490.0,0.00013894,2]
[368691484,1751301033214,-458.22709999,0.00013894,2]
[368691485,1751301033223,-490.0,0.00013894,2]
[368691486,1751301033233,-391.89718888,0.00013894,2]
[368691487,1751301033244,-857.51,0.00013894,2]
[368691488,1751301033253,-490.0,0.00013894,2]
[368691489,1751301033263,-490.0,0.00013894,2]
[368691490,1751301033273,-490.0,0.00013894,2]
[368691491,1751301033283,-490.0,0.00013894,2]
[368691492,1751301033293,-2461.35,0.00013894,2]
[368691493,1751301033304,-490.0,0.00013894,2]
[368691494,1751301033315,-540.45,0.00013894,2]
[368691495,1751301033532,-2754.51,0.00013894,2]
[368691496,1751301033543,-490.0,0.00013894,2]
[368691497,1751301033552,-490.0,0.00013894,2]
[368691498,1751301033563,-1536.55,0.00013894,2]
[368691499,1751301033573,-155.79143054,0.00013894,2]
[368691500,1751301034800,-521.03856946,0.00013894,2]
[368691501,1751301034810,-490.0,0.00013894,2]
[368691502,1751301034820,-1231.65,0.00013894,2]
[368691503,1751301034830,-490.0,0.00013894,2]
[368691504,1751301034840,-480.0,0.00013894,2]
[368691505,1751301034850,-490.0,0.00013894,2]
[368691506,1751301034859,-668.43,0.00013894,2]
[368691507,1751301034869,-490.0,0.00013894,2]
[368691508,1751301034878,-1356.23,0.00013894,2]
[368691509,1751301034888,-490.0,0.00013894,2]
[368691510,1751301034898,-1473.87,0.00013894,2]
[368691511,1751301034908,-3565.15,0.00013894,2]
[368691512,1751301034917,-490.0,0.00013894,2]
[368691513,1751301034927,-2741.3,0.00013894,2]
[368691514,1751301034938,-1026.71,0.00013894,2]
[368691515,1751301034948,-490.0,0.00013894,2]
[368691516,1751301034959,-490.0,0.00013894,2]
[368691517,1751301034969,-1102.07,0.00013894,2]
[368691518,1751301034980,-2882.47,0.00013894,2]
[368691519,1751301034990,-2946.7,0.00013894,2]
[368691520,1751301035000,-490.0,0.00013894,2]
[368691521,1751301035010,-490.0,0.00013894,2]
[368691522,1751301035020,-490.0,0.00013894,2]
[368691523,1751301035030,-1579.96,0.00013894,2]
[368691524,1751301035040,-490.0,0.00013894,2]
[368691525,1751301035050,-675.17,0.00013894,2]
[368691526,1751301035059,-1360.32,0.00013894,2]
[368691527,1751301035070,-3363.95,0.00013894,2]
[368691528,1751301035080,-1275.65,0.00013894,2]
[368691529,1751301035090,-1757.77,0.00013894,2]
[368691530,1751301035100,-1239.05,0.00013894,2]
[368691531,1751301035110,-490.0,0.00013894,2]
[368691532,1751301035125,-490.0,0.00013894,2]
[368691533,1751301035135,-637.95672727,0.00013894,2]
[368691534,1751301035145,-671.8,0.00013894,2]
[368691535,1751301035155,-967.2,0.00013894,2]
[368691536,1751301035165,-490.0,0.00013894,2]
[368691537,1751301035176,-924.58,0.00013894,2]
[368691538,1751301035186,-2368.63,0.00013894,2]
[368691539,1751301035197,-1334.12,0.00013894,2]
[368691540,1751301035207,-2637.67,0.00013894,2]
[368691541,1751301035218,-750.3,0.00013894,2]
[368691542,1751301035228,-4546.79,0.00013894,2]
[368691543,1751301035238,-1164.88,0.00013894,2]
[368691544,1751301035248,-415.49815509,0.00013894,2]
[368691545,1751301035258,-1490.31,0.00013894,2]
[368691546,1751301035268,-629.47,0.00013894,2]
[368691547,1751301035279,-490.0,0.00013894,2]
[368691548,1751301035289,-490.0,0.00013894,2]
[368691549,1751301035299,-982.62,0.00013894,2]
[368691550,1751301035309,-823.24,0.00013894,2]
[368691551,1751301035320,-509.08,0.00013894,2]
[368691552,1751301035332,-1549.1,0.00013894,2]
[368691553,1751301035342,-698.75,0.00013894,2]
[368691554,1751301035352,-1149.9,0.00013894,2]
[368691555,1751301035363,-1301.1,0.00013894,2]
[368691556,1751301035373,-490.0,0.00013894,2]
[368691557,1751301035384,-5944.28,0.00013894,2]
[368691558,1751301035394,-2684.0,0.00013894,2]
[368691559,1751301035404,-490.0,0.00013894,2]
[368691560,1751301035413,-1953.93,0.00013894,2]
[368691561,1751301035423,-490.0,0.00013894,2]
[368691562,1751301035434,-490.0,0.00013894,2]
[368691563,1751301035443,-490.0,0.00013894,2]
[368691564,1751301035453,-1442.22,0.00013894,2]
[368691565,1751301035463,-2136.98,0.00013894,2]
[368691566,1751301035472,-1259.84,0.00013894,2]
[368691567,1751301035482,-827.28,0.00013894,2]
[368691568,1751301035492,-808.81,0.00013894,2]
[368691569,1751301035502,-490.0,0.00013894,2]
[368691570,1751301035511,-1042.64,0.00013894,2]
[368691571,1751301035521,-490.0,0.00013894,2]
[368691572,1751301035531,-1722.62,0.00013894,2]
[368691573,1751301035540,-490.0,0.00013894,2]
[368691574,1751301035550,-925.65,0.00013894,2]
[368691575,1751301035571,-556.27,0.00013894,2]
[368691576,1751301035585,-1466.19,0.00013894,2]
[368691577,1751301035597,-640.5,0.00013894,2]
[368691578,1751301035608,-1237.88,0.00013894,2]
[368691579,1751301035618,-490.0,0.00013894,2]
[368691580,1751301035628,-864.4,0.00013894,2]
[368691581,1751301035639,-1465.14,0.00013894,2]
[368691582,1751301035650,-642.36,0.00013894,2]
[368691583,1751301035660,-945.45,0.00013894,2]
[368691584,1751301035671,-1014.15,0.00013894,2]
[368691585,1751301035681,-1258.72,0.00013894,2]
[368691586,1751301035692,-1266.04,0.00013894,2]
[368691587,1751301035702,-1691.29,0.00013894,2]
[368691588,1751301035712,-2962.72,0.00013894,2]
[368691589,1751301035723,-548.84,0.00013894,2]
[368691590,1751301035733,-490.0,0.00013894,2]
[368691591,1751301035743,-775.85,0.00013894,2]
[368691592,1751301035754,-1062.65,0.00013894,2]
[368691593,1751301035764,-1554.72,0.00013894,2]
[368691594,1751301035775,-1263.69,0.00013894,2]
[368691595,1751301035785,-3580.62,0.00013894,2]
[368691596,1751301035796,-1194.39,0.00013894,2]
[368691597,1751301035806,-2636.7,0.00013894,2]
[368691598,1751301035817,-490.0,0.00013894,2]
[368691599,1751301035827,-1479.68,0.00013894,2]
[368691600,1751301035837,-490.0,0.00013894,2]
[368691601,1751301035847,-490.0,0.00013894,2]
[368691602,1751301035857,-895.22,0.00013894,2]
[368691603,1751301035867,-500.0,0.00013894,2]
[368691604,1751301035877,-3979.52,0.00013894,2]
[368691605,1751301035888,-735.16,0.00013894,2]
[368691606,1751301035898,-490.0,0.00013894,2]
[368691607,1751301035909,-4171.82,0.00013894,2]
[368691608,1751301035920,-983.62,0.00013894,2]
[368691609,1751301035931,-490.0,0.00013894,2]
[368691610,1751301035941,-3368.77,0.00013894,2]
[368691611,1751301035951,-1304.02,0.00013894,2]
[368691612,1751301035963,-1113.91,0.00013894,2]
[368691613,1751301035974,-2267.05,0.00013894,2]
[368691614,1751301035985,-647.7,0.00013894,2]
[368691615,1751301035995,-599.43,0.00013894,2]
[368691616,1751301036013,-1471.67,0.00013894,2]
[368691617,1751301036025,-767.72,0.00013894,2]
[368691618,1751301036035,-648.84,0.00013894,2]
[368691619,1751301036046,-490.0,0.00013894,2]
[368691620,1751301036056,-490.0,0.00013894,2]
[368691621,1751301036067,-533.16868034,0.00013894,2]
[368691622,1751301036078,-820.74,0.00013894,2]
[368691623,1751301036089,-6674.3,0.00013894,2]
[368691624,1751301036099,-490.0,0.00013894,2]
[368691625,1751301036110,-1015.82,0.00013894,2]
[368691626,1751301036120,-500.5,0.00013894,2]
[368691627,1751301036131,-858.09,0.00013894,2]
[368691628,1751301036141,-4193.09,0.00013894,2]
[368691629,1751301036150,-490.0,0.00013894,2]
[368691630,1751301036161,-4900.48,0.00013894,2]
[368691631,1751301036170,-490.0,0.00013894,2]
[368691632,1751301036180,-490.0,0.00013894,2]
[368691633,1751301036191,-834.01,0.00013894,2]
[368691634,1751301036201,-573.66,0.00013894,2]
[368691635,1751301036211,-2000.07,0.00013894,2]
[368691636,1751301036222,-604.58742926,0.00013895,2]
[368691637,1751301036232,-490.0,0.00013895,2]
[368691638,1751301036243,-490.0,0.00013895,2]
[368691639,1751301036253,-401.01466289,0.00013895,2]
[368691640,1751301036263,-490.0,0.00013895,2]
[368691641,1751301036273,-490.0,0.00013895,2]
[368691642,1751301036285,-490.0,0.00013895,2]
[368691643,1751301036295,-490.0,0.00013895,2]
[368691644,1751301036306,-560.68,0.00013895,2]
[368691645,1751301036317,-654.36,0.00013895,2]
[368691646,1751301036330,-490.0,0.00013895,2]
[368691647,1751301036340,-490.0,0.00013895,2]
[368691648,1751301036351,-490.0,0.00013895,2]
[368691649,1751301036361,-490.0,0.00013895,2]
[368691650,1751301036372,-490.0,0.00013895,2]
[368691651,1751301036382,-560.58,0.00013895,2]
[368691652,1751301036393,-490.0,0.00013895,2]
[368691653,1751301036404,-625.84,0.00013895,2]
[368691654,1751301036415,-490.0,0.00013895,2]
[368691655,1751301036425,-490.0,0.00013895,2]
[368691656,1751301036440,-536.07,0.00013895,2]
[368691657,1751301036450,-490.0,0.00013895,2]
[368691658,1751301036461,-490.0,0.00013895,2]
[368691659,1751301036471,-490.0,0.00013895,2]
[368691660,1751301036481,-683.23,0.00013895,2]
[368691661,1751301036491,-490.0,0.00013895,2]
[368691662,1751301036501,-490.0,0.00013895,2]
[368691663,1751301036511,-490.0,0.00013895,2]
[368691664,1751301036521,-490.0,0.00013895,2]
[368691665,1751301036532,-490.0,0.00013895,2]
[368691666,1751301036542,-490.0,0.00013895,2]
[368691667,1751301036553,-846.92,0.00013895,2]
[368691668,1751301036564,-490.0,0.00013895,2]
[368691669,1751301036574,-490.0,0.00013895,2]
[368691670,1751301036585,-490.0,0.00013895,2]
[368691671,1751301036596,-490.0,0.00013895,2]
[368691672,1751301036606,-490.0,0.00013895,2]
[368691673,1751301036616,-490.0,0.00013895,2]
[368691674,1751301036626,-490.0,0.00013895,2]
[368691675,1751301036637,-490.0,0.00013895,2]
[368691676,1751301036647,-490.0,0.00013895,2]
[368691677,1751301036658,-510.24,0.00013895,2]
[368691678,1751301036668,-490.0,0.00013895,2]
[368691679,1751301036678,-763.76,0.00013895,2]
[368691680,1751301036689,-490.0,0.00013895,2]
[368691681,1751301036699,-490.0,0.00013895,2]
[368691682,1751301036709,-573.74,0.00013895,2]
[368691683,1751301036719,-490.0,0.00013895,2]
[368691684,1751301036729,-722.44,0.00013895,2]
[368691685,1751301036739,-490.0,0.00013895,2]
[368691686,1751301036750,-490.0,0.00013895,2]
[368691687,1751301036760,-719.75,0.00013895,2]
[368691688,1751301036771,-490.0,0.00013895,2]
[368691689,1751301036781,-490.0,0.00013895,2]
[368691690,1751301036792,-490.0,0.00013895,2]
[368691691,1751301036802,-490.0,0.00013895,2]
[368691692,1751301036814,-490.0,0.00013895,2]
[368691693,1751301036824,-490.0,0.00013895,2]
[368691694,1751301036835,-490.0,0.00013895,2]
[368691695,1751301036845,-490.0,0.00013895,2]
[368691696,1751301036856,-490.0,0.00013895,2]
[368691697,1751301036866,-490.0,0.00013895,2]
[368691698,1751301036881,-490.0,0.00013895,2]
[368691699,1751301036892,-490.0,0.00013895,2]
[368691700,1751301036902,-490.0,0.00013895,2]
[368691701,1751301036913,-496.02713546,0.00013895,2]
[368691702,1751301036923,-490.0,0.00013895,2]
[368691703,1751301036934,-522.1001005,0.00013895,2]
[368691704,1751301036944,-490.0,0.00013895,2]
[368691705,1751301036954,-490.0,0.00013895,2]
[368691706,1751301036964,-490.0,0.00013895,2]
[368691707,1751301036974,-490.0,0.00013895,2]
[368691708,1751301036985,-490.0,0.00013895,2]
[368691709,1751301036995,-490.0,0.00013895,2]
[368691710,1751301037005,-834.15,0.00013895,2]
[368691711,1751301037015,-490.0,0.00013895,2]
[368691712,1751301037025,-490.0,0.00013895,2]
[368691713,1751301037035,-490.0,0.00013895,2]
[368691714,1751301037045,-507.95833311,0.00013895,2]
[368691715,1751301037055,-490.0,0.00013895,2]
[368691716,1751301037067,-490.0,0.00013895,2]
[368691717,1751301037077,-490.0,0.00013895,2]
[368691718,1751301037088,-960.51,0.00013895,2]
[368691719,1751301037098,-490.0,0.00013895,2]
[368691720,1751301037108,-490.0,0.00013895,2]
[368691721,1751301037119,-501.87,0.00013895,2]
[368691722,1751301037130,-490.0,0.00013895,2]
[368691723,1751301037141,-490.0,0.00013895,2]
[368691724,1751301037151,-490.0,0.00013895,2]
[368691725,1751301037162,-535.02,0.00013895,2]
[368691726,1751301037173,-490.0,0.00013895,2]
[368691727,1751301037183,-490.0,0.00013895,2]
[368691728,1751301037194,-490.0,0.00013895,2]
[368691729,1751301037204,-490.0,0.00013895,2]
[368691730,1751301037214,-490.0,0.00013895,2]
[368691731,1751301037225,-490.0,0.00013895,2]
[368691732,1751301037236,-490.0,0.00013895,2]
[368691733,1751301037246,-490.0,0.00013895,2]
[368691734,1751301037256,-709.2,0.00013895,2]
[368691735,1751301037265,-490.0,0.00013895,2]
[368691736,1751301037275,-563.39,0.00013895,2]
[368691737,1751301037285,-490.0,0.00013895,2]
[368691738,1751301037296,-490.0,0.00013895,2]
[368691739,1751301037319,-490.0,0.00013895,2]
[368691740,1751301037332,-535.57,0.00013895,2]
[368691741,1751301037343,-490.0,0.00013895,2]
[368691742,1751301037353,-490.0,0.00013895,2]
[368691743,1751301037364,-1085.1,0.00013895,2]
[368691744,1751301037375,-490.0,0.00013895,2]
[368691745,1751301037385,-490.0,0.00013895,2]
[368691746,1751301037396,-490.0,0.00013895,2]
[368691747,1751301037408,-490.0,0.00013895,2]
[368691748,1751301037418,-903.93,0.00013895,2]
[368691749,1751301037428,-490.0,0.00013895,2]
[368691750,1751301037438,-490.0,0.00013895,2]
[368691751,1751301037448,-490.0,0.00013895,2]
[368691752,1751301037458,-490.0,0.00013895,2]
[368691753,1751301037468,-490.0,0.00013895,2]
[368691754,1751301037478,-490.0,0.00013895,2]
[368691755,1751301037489,-490.0,0.00013895,2]
[368691756,1751301037499,-490.0,0.00013895,2]
[368691757,1751301037509,-731.1,0.00013895,2]
[368691758,1751301037519,-490.0,0.00013895,2]
[368691759,1751301037529,-858.77,0.00013895,2]
[368691760,1751301037539,-1118.08,0.00013895,2]
[368691761,1751301037549,-549.84,0.00013895,2]
[368691762,1751301037559,-490.0,0.00013895,2]
[368691763,1751301037572,-718.56,0.00013895,2]
[368691764,1751301037581,-588.1,0.00013895,2]
[368691765,1751301037591,-490.0,0.00013895,2]
[368691766,1751301037601,-490.0,0.00013895,2]
[368691767,1751301037612,-490.0,0.00013895,2]
[368691768,1751301037622,-957.71,0.00013895,2]
[368691769,1751301037632,-679.68,0.00013895,2]
[368691770,1751301037641,-490.0,0.00013895,2]
[368691771,1751301037652,-490.0,0.00013895,2]
[368691772,1751301037663,-490.0,0.00013895,2]
[368691773,1751301037673,-490.0,0.00013895,2]
[368691774,1751301037683,-2128.61,0.00013895,2]
[368691775,1751301037694,-614.37,0.00013895,2]
[368691776,1751301037703,-490.0,0.00013895,2]
[368691777,1751301037713,-490.0,0.00013895,2]
[368691778,1751301037723,-490.0,0.00013895,2]
[368691779,1751301037733,-2102.88,0.00013895,2]
[368691780,1751301037748,-490.0,0.00013895,2]
[368691781,1751301037757,-637.66,0.00013895,2]
[368691782,1751301037767,-490.0,0.00013895,2]
[368691783,1751301037777,-4022.57,0.00013895,2]
[368691784,1751301037787,-490.0,0.00013895,2]
[368691785,1751301037798,-678.47,0.00013895,2]
[368691786,1751301037808,-623.87245332,0.00013895,2]
[368691787,1751301037820,-518.92,0.00013895,2]
[368691788,1751301037831,-3258.79,0.00013895,2]
[368691789,1751301037841,-490.0,0.00013895,2]
[368691790,1751301037851,-679.92,0.00013895,2]
[368691791,1751301037862,-490.0,0.00013895,2]
[368691792,1751301037872,-490.0,0.00013895,2]
[368691793,1751301037882,-652.54,0.00013895,2]
[368691794,1751301037892,-490.0,0.00013895,2]
[368691795,1751301037902,-5056.4,0.00013895,2]
[368691796,1751301037912,-490.0,0.00013895,2]
[368691797,1751301037923,-490.0,0.00013895,2]
[368691798,1751301037933,-490.0,0.00013895,2]
[368691799,1751301037943,-490.0,0.00013895,2]
[368691800,1751301037953,-1693.67,0.00013895,2]
[368691801,1751301037964,-490.0,0.00013895,2]
[368691802,1751301037975,-490.0,0.00013895,2]
[368691803,1751301037985,-490.0,0.00013895,2]
[368691804,1751301037995,-19464.94,0.00013895,2]
[368691805,1751301038005,-490.0,0.00013895,2]
[368691806,1751301038016,-63.1477529,0.00013895,2]
[368691807,1751301038064,-490.0,0.00013894,2]
[368691809,1751301038075,-426.8522471,0.00013895,2]
[368691811,1751301038085,-83.36825133,0.00013895,2]
[368691813,1751301038097,-406.63174867,0.00013895,2]
[368691815,1751301038107,-490.0,0.00013895,2]
[368691817,1751301038117,-339.45296291,0.00013895,2]
[368691819,1751301038130,-570.55157139,0.00013895,2]
[368691821,1751301038143,-605.3854657,0.00013895,2]
[368691823,1751301038154,-490.0,0.00013895,2]
[368691825,1751301038164,-502.06,0.00013895,2]
[368691828,1751301038179,-490.0,0.00013895,2]
[368691830,1751301038190,-241.81326476,0.00013895,2]
[368691901,1751301040412,-184.52297829,0.00013795,2]
[368691902,1751301040423,-248.18673524,0.00013895,2]
[368691903,1751301040433,-521.04463295,0.00013895,2]
[368691904,1751301040446,-464.69536705,0.00013895,2]
[368691905,1751301040456,-360.85512828,0.00013895,2]
[368691917,1751301040631,-129.14487172,0.00013895,2]
[368691919,1751301040641,-300.93512828,0.00013895,2]
[368691933,1751301041114,-2973.08487172,0.00013895,2]
[368691934,1751301041124,-490.0,0.00013895,2]
[368691935,1751301041134,-490.0,0.00013895,2]
[368691936,1751301041145,-490.0,0.00013895,2]
[368691937,1751301041154,-2647.98,0.00013895,2]
[368691938,1751301041165,-490.0,0.00013895,2]
[368691939,1751301041174,-1107.67,0.00013895,2]
[368691940,1751301041184,-490.0,0.00013895,2]
[368691941,1751301041194,-490.0,0.00013895,2]
[368691942,1751301041204,-490.0,0.00013895,2]
[368691943,1751301041214,-1922.85,0.00013895,2]
[368691944,1751301041224,-490.0,0.00013895,2]
[368691945,1751301041235,-490.0,0.00013895,2]
[368691946,1751301041245,-490.0,0.00013895,2]
[368691947,1751301041255,-3306.19,0.00013895,2]
[368691948,1751301041265,-490.0,0.00013895,2]
[368691949,1751301041276,-490.0,0.00013895,2]
[368691950,1751301041287,-688.99,0.00013895,2]
[368691951,1751301041297,-2416.69,0.00013895,2]